bitfinex/quotes_SOLUSD_20260109
["timestamp","ask_amount","ask_price","bid_price","bid_amount"]
[1767923231813,0.66532214,137.91,137.87,21.18204107]
[1767923232002,3.53757017,137.91,137.88,7.94172436]
[1767923232521,3.53757017,137.91,137.89,0.68917247]
[1767923235639,3.53757017,137.92,137.89,0.68917247]
[1767923236362,0.66532214,137.91,137.88,7.25255189]
[1767923236917,0.66532214,137.91,137.88,7.94172436]
[1767923238123,0.66532214,137.91,137.88,7.25255189]
[1767923238332,0.66532214,137.91,137.87,7.25320954]
[1767923239041,4.20289231,137.91,137.87,7.25320954]
[1767923239543,0.66532214,137.9,137.87,7.25320954]
[1767923239742,3.53757017,137.91,137.87,21.18238201]
[1767923239911,3.53757017,137.9,137.87,7.25320954]
[1767923240116,3.53757017,137.89,137.86,7.25356976]
[1767923240315,3.53757017,137.88,137.85,7.25387897]
[1767923241038,3.53757017,137.87,137.84,7.94391121]
[1767923241248,3.53757017,137.87,137.85,7.25421168]
[1767923241620,3.53757017,137.87,137.85,0.68917247]
[1767923242049,3.50757018,137.87,137.85,0.68917247]
[1767923242226,3.53757017,137.88,137.85,0.68917247]
[1767923242428,0.66532214,137.9,137.85,0.68917247]
[1767923242954,3.53757017,137.88,137.85,0.68917247]
[1767923243357,3.53757017,137.87,137.85,0.68917247]
[1767923244649,3.53757017,137.87,137.84,7.94366708]
[1767923245038,3.53757017,137.87,137.85,0.68917247]
[1767923245338,7.25195059,137.9,137.85,7.94337027]
[1767923245339,3.53757017,137.88,137.85,7.94337027]
[1767923245530,4.20289231,137.89,137.85,7.94337027]
[1767923245842,3.53757017,137.88,137.85,0.68917247]
[1767923250135,3.53757017,137.88,137.85,7.94335757]
[1767923250338,4.20289231,137.89,137.85,7.94335757]
[1767923253358,0.66532214,137.89,137.85,7.94335757]
[1767923253660,4.20289231,137.89,137.85,7.94335757]
[1767923255656,4.20289231,137.89,137.86,0.69510712]
[1767923256055,0.66532214,137.89,137.86,0.69510712]
[1767923256262,4.20289231,137.89,137.86,0.69510712]
[1767923260850,0.12156243,137.88,137.84,7.25478816]
[1767923261055,0.09156244,137.88,137.84,7.94989528]
[1767923262057,20.49118869,137.91,137.86,0.69510712]
[1767923262259,3.53757017,137.9,137.86,0.69510712]
[1767923262457,3.53757017,137.9,137.85,10.79168852]
[1767923262760,3.53757017,137.9,137.86,0.69510712]
[1767923263345,3.53757017,137.9,137.87,0.69510712]
[1767923263950,3.53757017,137.89,137.87,0.69510712]
[1767923264570,3.53757017,137.89,137.86,0.69510712]
[1767923264754,3.53757017,137.88,137.86,0.69510712]
[1767923265067,4.18461167,137.88,137.85,7.25408761]
[1767923265243,4.18461167,137.88,137.85,0.69510712]
[1767923265442,3.53757017,137.88,137.85,0.69510712]
[1767923265644,3.63657017,137.88,137.84,7.94989528]
[1767923266168,3.63657017,137.88,137.85,0.69510712]
[1767923267072,3.63657017,137.88,137.85,7.94923421]
[1767923271973,3.63657017,137.88,137.84,0.69510712]
[1767923273374,0.10453521,137.85,137.81,0.69510712]
[1767923273555,3.61210539,137.85,137.81,0.69510712]
[1767923273866,3.53757017,137.84,137.81,7.95112771]
[1767923274072,3.61210539,137.85,137.82,0.69510712]
[1767923274373,3.53757017,137.85,137.82,0.69510712]
[1767923274957,3.53757017,137.88,137.82,4.23267729]
[1767923275157,3.53757017,137.88,137.84,0.69510712]
[1767923275365,16.77757017,137.89,137.84,0.69510712]
[1767923275563,0.099,137.87,137.83,3.53757017]
[1767923275759,0.099,137.87,137.83,4.23267729]
[1767923277670,3.53757017,137.88,137.85,0.69510712]
[1767923281178,20.49216134,137.89,137.85,0.69510712]
[1767923281580,3.53757017,137.88,137.85,0.69510712]
[1767923282171,0.10423821,137.87,137.84,7.25478816]
[1767923282860,13.8681125,137.89,137.85,4.2572751]
[1767923283161,0.099,137.88,137.85,3.53757017]
[1767923284571,0.099,137.88,137.85,2.26464934]
[1767923285279,0.099,137.88,137.85,9.51874204]
[1767923286086,2.26464934,137.9,137.85,7.2540927]
[1767923286287,2.26464934,137.9,137.85,9.51874204]
[1767923287393,2.26464934,137.9,137.86,0.71928974]
[1767923288469,123.59076902,137.92,137.87,0.71928974]
[1767923288666,0.62282137,137.91,137.86,2.26464934]
[1767923288976,0.62282137,137.91,137.86,2.98393908]
[1767923289153,2.88747071,137.91,137.86,0.71928974]
[1767923289472,0.10423821,137.9,137.86,0.71928974]
[1767923289678,0.10423821,137.9,137.85,9.51874204]
[1767923289868,0.10423821,137.9,137.86,7.2536922]
[1767923289869,0.61763554,137.89,137.86,7.2536922]
[1767923291069,10.1440159,137.91,137.87,0.71928974]
[1767923291566,126.48342978,137.92,137.88,0.71928974]
[1767923291779,116.34,137.92,137.88,0.71928974]
[1767923293071,116.34,137.92,137.89,0.71928974]
[1767923295187,103.1,137.92,137.89,0.71928974]
[1767923296596,2.26464934,137.93,137.9,0.71928974]
[1767923296771,2.26464934,137.93,137.9,0.65928974]
[1767923299086,2.26464934,137.91,137.88,0.71928974]
[1767923299279,2.26464934,137.92,137.88,0.71928974]
[1767923300174,7.9383706,137.93,137.88,0.71928974]
[1767923300376,2.26464934,137.92,137.88,0.71928974]
[1767923300881,2.26464934,137.92,137.89,0.71928974]
[1767923301089,10.20301994,137.93,137.89,0.71928974]
[1767923301480,10.20301994,137.93,137.88,7.25234638]
[1767923301481,0.68222137,137.91,137.87,0.71928974]
[1767923301800,0.6881125,137.92,137.88,0.71928974]
[1767923304100,7.2502581,137.93,137.89,0.71928974]
[1767923304296,0.68222137,137.92,137.88,9.51690012]
[1767923304605,0.68222137,137.92,137.88,10.23618986]
[1767923304895,0.68222137,137.92,137.88,9.51690012]
[1767923305385,0.68222137,137.92,137.88,10.23618986]
[1767923305588,2.26464934,137.93,137.89,0.71928974]
[1767923305784,15.60364934,137.95,137.9,0.71928974]
[1767923305990,0.6881125,137.98,137.93,0.71928974]
[1767923306187,2.95276184,137.98,137.93,0.71928974]
[1767923306712,2.95276184,137.98,137.94,0.71928974]
[1767923307681,10.20021625,137.98,137.94,0.71928974]
[1767923307877,7.93556691,137.98,137.94,0.71928974]
[1767923308106,2.95276184,137.98,137.94,0.71928974]
[1767923308315,7.93587706,137.98,137.94,0.71928974]
[1767923308523,10.2005264,137.98,137.94,0.71928974]
[1767923308685,2.95276184,137.98,137.94,0.71928974]
[1767923309914,0.099,137.97,137.93,9.51468471]
[1767923310800,0.6881125,137.99,137.95,2.26464934]
[1767923311881,0.6881125,137.99,137.95,9.51352522]
[1767923314416,9.71065415,138.01,137.95,9.51352522]
[1767923314417,0.85489363,138.01,137.97,2.97782431]
[1767923314715,0.85489363,138.01,137.98,2.26464934]
[1767923315009,0.2,138.01,137.99,0.71317497]
[1767923315190,0.2,138.01,137.99,0.65317497]
[1767923315390,0.2,138.02,137.98,2.26464934]
[1767923316203,0.2,138.02,137.97,7.2478886]
[1767923316409,0.2,138.02,137.99,2.26464934]
[1767923316792,0.2,138.02,137.98,2.26464934]
[1767923317203,0.2,138.02,137.99,0.71317497]
[1767923318808,0.2,138.02,138.0,0.71317497]
[1767923319603,0.39191619,138.01,137.99,7.24680755]
[1767923319801,0.2,138.02,137.99,7.24680755]
[1767923320809,0.2,138.02,138.0,2.26464934]
[1767923321108,0.2,138.02,138.01,2.26464934]
[1767923321311,0.2,138.03,138.02,2.26464934]
[1767923321608,0.2,138.03,138.02,2.97782431]
[1767923321808,0.2,138.05,138.02,2.26464934]
[1767923321986,0.2,138.05,138.03,0.71317497]
[1767923322304,0.2,138.05,138.02,2.26464934]
[1767923322305,0.30352625,138.05,138.02,2.26464934]
[1767923322509,0.30352625,138.05,138.01,0.71317497]
[1767923322812,0.30352625,138.05,138.02,2.26464934]
[1767923322991,0.2,138.05,138.02,2.97782431]
[1767923323508,0.2,138.05,138.03,2.26464934]
[1767923323711,0.2,138.05,138.03,0.71317497]
[1767923324107,0.10352625,138.04,138.0,7.95918696]
[1767923324413,2.46464934,138.05,138.0,10.2238363]
[1767923325513,0.2,138.05,138.0,10.2238363]
[1767923325715,0.2,138.05,138.02,0.71317497]
[1767923326311,0.2,138.05,138.03,2.26464934]
[1767923326612,0.2,138.06,138.04,2.97782431]
[1767923326816,0.2,138.06,138.04,0.71317497]
[1767923332914,2.26464934,138.08,138.05,0.67989771]
[1767923333099,0.02693566,138.05,138.03,9.50906239]
[1767923333299,0.12974315,138.07,138.03,9.44906239]
[1767923334705,0.12974315,138.07,138.03,7.18441305]
[1767923334706,2.39439249,138.07,138.03,7.18441305]
[1767923334904,0.12974315,138.07,138.03,7.89758802]
[1767923335105,2.39439249,138.07,138.03,7.89758802]
[1767923336437,2.26464934,138.07,138.04,0.71317497]
[1767923336597,7.37157357,138.09,138.04,0.71317497]
[1767923336803,2.26464934,138.07,138.04,0.71317497]
[1767923337021,2.26464934,138.08,138.04,0.71317497]
[1767923339038,7.37157357,138.09,138.04,0.71317497]
[1767923339321,2.26464934,138.08,138.05,0.71317497]
[1767923339525,7.37157357,138.09,138.05,0.71317497]
[1767923339899,2.26464934,138.08,138.05,0.71317497]
[1767923340106,7.37157357,138.09,138.05,0.71317497]
[1767923340428,9.50694217,138.08,138.05,0.71317497]
[1767923340622,2.26464934,138.07,138.05,0.71317497]
[1767923341010,9.50694217,138.08,138.05,0.71317497]
[1767923341342,2.26464934,138.08,138.05,0.71317497]
[1767923341629,2.26464934,138.09,138.05,0.71317497]
[1767923343010,7.89619855,138.1,138.05,0.71317497]
[1767923343211,2.26464934,138.09,138.05,0.71317497]
[1767923343525,2.26464934,138.1,138.06,0.71506762]
[1767923343700,2.46464934,138.11,138.07,0.71506762]
[1767923344321,9.70530586,138.11,138.07,0.71506762]
[1767923344633,10.9685665,138.11,138.07,0.71506762]
[1767923344821,7.44065652,138.11,138.07,0.71506762]
[1767923345028,10.9685665,138.11,138.07,0.71506762]
[1767923345206,3.72790998,138.11,138.07,0.71506762]
[1767923345510,0.2,138.11,138.08,0.71506762]
[1767923346333,0.66868698,138.08,138.06,0.71506762]
[1767923346636,7.92743851,138.1,138.06,0.71506762]
[1767923346815,3.52790998,138.08,138.06,0.71506762]
[1767923347814,3.52790998,138.08,138.05,0.71996406]
[1767923348136,3.52790998,138.09,138.06,0.71996406]
[1767923349137,7.24120271,138.1,138.06,0.71996406]
[1767923349324,3.52790998,138.09,138.06,0.71996406]
[1767923349516,7.35573332,138.1,138.06,0.71996406]
[1767923349716,3.52790998,138.09,138.06,0.71996406]
[1767923349914,0.2,138.12,138.07,6.6801107]
[1767923350117,0.2,138.22,138.12,0.14216157]
[1767923350316,0.2,138.22,138.17,3.7797067]
[1767923350522,4.19816981,138.21,138.17,3.7797067]
[1767923350730,0.67025983,138.22,138.17,3.7797067]
[1767923350935,0.67025983,138.2,138.17,3.7797067]
[1767923351627,0.67025983,138.19,138.17,3.7797067]
[1767923351826,0.67025983,138.18,138.17,3.0547067]
[1767923352838,0.67025983,138.19,138.17,3.0547067]
[1767923353030,3.52790998,138.2,138.17,3.0547067]
[1767923353339,7.9057475,138.21,138.17,3.0547067]
[1767923353534,11.43365748,138.21,138.17,3.0547067]
[1767923354420,0.67025983,138.21,138.17,6.58261668]
[1767923354824,13.22,138.2,138.17,7.30258074]
[1767923355131,13.22,138.2,138.17,14.53999437]
[1767923355648,13.22,138.2,138.17,11.01208439]
[1767923356016,13.22,138.2,138.17,7.95737769]
[1767923356529,10.27768656,138.2,138.18,0.71996406]
[1767923357042,13.22,138.19,138.17,0.71996406]
[1767923359042,13.89025983,138.19,138.15,4.24787404]
[1767923359614,13.22,138.19,138.15,4.24787404]
[1767923360337,13.22,138.19,138.11,28.30925928]
[1767923360338,0.67025983,138.18,138.13,0.71996406]
[1767923360541,4.19816981,138.18,138.14,0.71996406]
[1767923360736,24.65472268,138.19,138.14,0.71996406]
[1767923361627,24.65472268,138.19,138.14,4.24787404]
[1767923362029,0.67025983,138.19,138.15,4.24787404]
[1767923362343,13.22,138.18,138.15,4.24787404]
[1767923362545,13.22,138.18,138.15,0.71996406]
[1767923362847,13.22,138.18,138.15,4.24787404]
[1767923363747,13.89025983,138.18,138.15,7.23817971]
[1767923363963,13.22,138.18,138.15,7.23817971]
[1767923364249,13.22,138.18,138.15,7.95814377]
[1767923364547,0.67025983,138.21,138.17,4.24787404]
[1767923364862,0.67025983,138.22,138.18,4.24787404]
[1767923366441,0.67025983,138.22,138.18,11.48472657]
[1767923367933,0.2,138.23,138.19,11.48425095]
[1767923368134,0.2,138.23,138.21,0.71996406]
[1767923368746,0.2,138.23,138.2,3.52790998]
[1767923368946,0.2,138.23,138.2,4.24787404]
[1767923369436,13.16427117,138.25,138.22,3.52790998]
[1767923369745,13.16427117,138.25,138.23,3.52790998]
[1767923370152,13.16427117,138.25,138.18,3.52790998]
[1767923370345,13.16427117,138.25,138.23,3.52790998]
[1767923370825,0.2,138.28,138.24,3.52790998]
[1767923371029,0.67025983,138.3,138.27,3.52790998]
[1767923371524,7.9000086,138.32,138.27,3.52790998]
[1767923371935,7.9000086,138.32,138.28,3.52790998]
[1767923372156,0.1,138.34,138.3,3.52790998]
[1767923372330,0.1,138.34,138.31,3.52790998]
[1767923373251,0.1,138.34,138.32,3.52790998]
[1767923373454,4.42867488,138.43,138.35,3.52790998]
[1767923373455,13.85417327,138.4,138.35,3.52790998]
[1767923373636,0.65417327,138.39,138.33,7.22871062]
[1767923373961,0.65417327,138.39,138.34,3.52790998]
[1767923374655,7.88053169,138.39,138.34,3.52790998]
[1767923375234,11.40844167,138.39,138.34,3.52790998]
[1767923375549,0.65417327,138.38,138.29,25.59345611]
[1767923375754,0.65417327,138.34,138.29,3.52790998]
[1767923375955,0.65417327,138.33,138.29,3.52790998]
[1767923376253,13.2,138.34,138.31,3.52790998]
[1767923376457,13.2,138.34,138.3,3.52790998]
[1767923376648,13.2,138.34,138.29,7.25865029]
[1767923376960,3.52790998,138.32,138.28,7.2315859]
[1767923377132,3.52790998,138.33,138.28,3.52790998]
[1767923378159,4.18208325,138.33,138.28,3.52790998]
[1767923378949,0.65417327,138.33,138.27,7.23222408]
[1767923379155,0.65417327,138.32,138.27,7.23222408]
[1767923379353,0.65417327,138.32,138.28,3.52790998]
[1767923381036,13.2,138.31,138.29,3.52790998]
[1767923382351,13.2,138.31,138.28,10.78669688]
[1767923383957,13.2,138.31,138.29,3.52790998]
[1767923387149,13.2,138.31,138.29,10.75901019]
[1767923387348,0.65417327,138.33,138.29,10.75901019]
[1767923387648,13.2,138.31,138.29,10.75901019]
[1767923388042,13.2,138.32,138.29,10.75901019]
[1767923388242,0.65417327,138.33,138.3,10.75839603]
[1767923388449,0.65417327,138.35,138.32,3.52790998]
[1767923388644,13.85417327,138.35,138.32,3.52790998]
[1767923388850,0.65417327,138.35,138.32,3.52790998]
[1767923390658,0.65417327,138.35,138.32,10.75718144]
[1767923390856,0.65417327,138.37,138.34,3.52790998]
[1767923392538,0.65417327,138.41,138.36,3.52790998]
[1767923392737,0.65417327,138.41,138.34,7.22808561]
[1767923392738,0.65417327,138.41,138.37,3.52790998]
[1767923393134,0.65417327,138.41,138.36,3.52790998]
[1767923393663,0.65417327,138.4,138.36,3.52790998]
[1767923394368,0.65417327,138.4,138.36,10.75536285]
[1767923394743,0.65417327,138.4,138.37,3.52790998]
[1767923395965,0.65417327,138.4,138.34,18.07141824]
[1767923396168,0.65417327,138.4,138.37,3.52790998]
[1767923396543,0.65417327,138.4,138.38,3.52790998]
[1767923397148,0.65417327,138.4,138.38,3.46790998]
[1767923398665,0.65417327,138.4,138.34,25.29998553]
[1767923398868,0.65417327,138.39,138.35,3.52790998]
[1767923400759,0.65417327,138.38,138.34,3.52790998]
[1767923401163,0.65417327,138.38,138.33,3.52790998]
[1767923401368,0.65417327,138.38,138.32,7.22953171]
[1767923401369,0.65417327,138.38,138.34,3.52790998]
[1767923402455,0.65417327,138.38,138.33,3.52790998]
[1767923402456,0.65417327,138.37,138.33,3.52790998]
[1767923403871,0.65417327,138.37,138.32,10.75741191]
[1767923405962,0.71554532,138.36,138.32,10.75741191]
[1767923406572,0.71554532,138.36,138.32,9.47884524]
[1767923407475,0.71554532,138.36,138.32,2.24934331]
[1767923407974,0.71554532,138.36,138.32,9.47888117]
[1767923408555,0.68223207,138.35,138.3,2.24934331]
[1767923408750,0.68223207,138.34,138.3,7.23027253]
[1767923409158,0.68223207,138.34,138.3,9.47961584]
[1767923411187,0.68223207,138.33,138.28,13.2]
[1767923411493,2.93157538,138.32,138.27,2.24934331]
[1767923411683,0.68223207,138.31,138.26,9.4817378]
[1767923411974,0.68223207,138.3,138.26,2.24934331]
[1767923412182,0.68223207,138.3,138.25,13.2]
[1767923412352,0.68223207,138.3,138.26,2.24934331]
[1767923412553,0.68223207,138.3,138.25,20.43314912]
[1767923412774,0.68223207,138.3,138.26,9.48188179]
[1767923412975,2.93157538,138.3,138.25,13.2]
[1767923413157,0.68223207,138.28,138.24,2.24934331]
[1767923413554,0.68223207,138.28,138.24,0.79934331]
[1767923413787,0.65065669,138.26,138.19,18.09066105]
[1767923413958,20.43170802,138.28,138.2,7.23572962]
[1767923414158,2.24934331,138.26,138.2,9.48507293]
[1767923414354,2.24934331,138.25,138.2,2.24934331]
[1767923414791,15.44934331,138.26,138.21,2.24934331]
[1767923415475,22.6821368,138.26,138.21,2.24934331]
[1767923415682,22.6821368,138.26,138.2,7.23539617]
[1767923415881,22.6821368,138.26,138.21,2.24934331]
[1767923416297,20.43279349,138.26,138.21,2.24934331]
[1767923416661,22.6821368,138.26,138.21,2.9034525]
[1767923416878,22.6821368,138.26,138.21,0.65410919]
[1767923417096,22.6821368,138.26,138.21,2.9034525]
[1767923418390,22.6821368,138.26,138.21,0.65410919]
[1767923419483,2.24934331,138.25,138.21,0.65410919]
[1767923421560,9.48278479,138.25,138.21,0.65410919]
[1767923422072,2.24934331,138.24,138.21,0.65410919]
[1767923422277,2.24934331,138.23,138.19,0.65410919]
[1767923422794,25.31662412,138.25,138.2,0.65410919]
[1767923422795,15.44934331,138.24,138.2,0.65410919]
[1767923423088,13.2,138.24,138.2,0.65410919]
[1767923423462,22.68223783,138.26,138.22,0.65410919]
[1767923424566,2.24934331,138.25,138.22,0.65410919]
[1767923425292,2.24934331,138.24,138.22,0.65410919]
[1767923425782,15.44934331,138.23,138.18,0.85410919]
[1767923426091,105.63366645,138.25,138.18,0.2]
[1767923426295,2.24934331,138.23,138.19,0.65410919]
[1767923428893,2.24934331,138.22,138.19,0.65410919]
[1767923429999,7.2343667,138.23,138.18,0.2]
[1767923430000,2.24934331,138.21,138.18,0.2]
[1767923430368,2.24934331,138.23,138.19,0.65410919]
[1767923430572,9.48330828,138.24,138.19,0.65410919]
[1767923433997,2.24934331,138.22,138.19,0.65410919]
[1767923434991,2.24934331,138.22,138.18,0.2]
[1767923435187,2.24934331,138.21,138.18,0.2]
[1767923435989,2.24934331,138.21,138.18,0.86661646]
[1767923437072,9.48447117,138.22,138.18,0.86661646]
[1767923438295,7.23512786,138.22,138.18,0.86661646]
[1767923438499,9.48447117,138.22,138.18,0.86661646]
[1767923439022,2.24934331,138.22,138.18,0.86661646]
[1767923439805,9.48425582,138.22,138.18,0.86661646]
[1767923440397,9.48499524,138.21,138.18,0.86661646]
[1767923440595,2.24934331,138.19,138.18,0.2]
[1767923440774,2.24934331,138.2,138.18,0.2]
[1767923441673,2.24934331,138.19,138.15,0.66661646]
[1767923441874,2.24934331,138.17,138.15,0.66661646]
[1767923442100,103.1,138.2,138.15,0.66661646]
[1767923442393,2.24934331,138.17,138.15,0.66661646]
[1767923442599,2.24934331,138.17,138.14,0.86661646]
[1767923443403,9.48687573,138.17,138.14,0.86661646]
[1767923443789,2.24934331,138.16,138.14,0.86661646]
[1767923444192,2.24934331,138.16,138.14,0.2]
[1767923444407,18.09184441,138.19,138.14,0.2]
[1767923444717,2.24934331,138.17,138.14,0.2]
[1767923446604,2.24934331,138.16,138.14,0.2]
[1767923446913,9.48691598,138.17,138.14,0.2]
[1767923447815,7.52140426,138.18,138.14,0.86661646]
[1767923448307,2.24934331,138.17,138.14,0.86661646]
[1767923451417,2.21934332,138.17,138.14,0.86661646]
[1767923453296,9.77074757,138.18,138.15,0.66661646]
[1767923453505,103.1,138.2,138.16,0.66661646]
[1767923453506,112.58556398,138.2,138.16,0.66661646]
[1767923453704,105.34934331,138.2,138.16,0.66661646]
[1767923453907,103.1,138.2,138.16,0.66661646]
[1767923455724,285.48327249,138.25,138.18,0.66661646]
[1767923455911,2.24934331,138.23,138.19,0.66661646]
[1767923456116,121.18327249,138.25,138.19,0.66661646]
[1767923456418,2.24934331,138.23,138.19,0.66661646]
[1767923456926,9.48386294,138.23,138.19,0.66661646]
[1767923457221,2.24934331,138.22,138.19,0.66661646]
[1767923458721,2.24934331,138.22,138.17,0.66661646]
[1767923458921,2.24934331,138.2,138.17,0.66661646]
[1767923459903,9.48538185,138.2,138.17,0.66661646]
[1767923460728,7.2354547,138.21,138.17,0.66661646]
[1767923462031,2.24934331,138.21,138.17,0.66661646]
[1767923464020,9.48476169,138.21,138.17,0.66661646]
[1767923464920,2.24934331,138.19,138.17,0.66661646]
[1767923466431,2.24934331,138.2,138.17,0.66661646]
[1767923467333,2.24934331,138.19,138.16,1.30923401]
[1767923468035,2.24934331,138.18,138.16,1.30923401]
[1767923468243,2.21934332,138.18,138.16,1.30923401]
[1767923468410,25.3219505,138.22,138.17,0.70923401]
[1767923468411,2.24934331,138.19,138.17,0.70923401]
[1767923468614,3.52351986,138.19,138.17,0.70923401]
[1767923469412,7.23557971,138.21,138.17,0.70923401]
[1767923469613,3.52351986,138.19,138.17,0.70923401]
[1767923469836,7.23557971,138.21,138.17,0.70923401]
[1767923470019,3.52351986,138.2,138.17,0.70923401]
[1767923470328,3.52351986,138.19,138.17,0.70923401]
[1767923471044,3.52351986,138.18,138.16,1.30923401]
[1767923471417,3.52351986,138.18,138.17,0.70923401]
[1767923472215,3.49351987,138.18,138.16,0.6]
[1767923474439,3.49351987,138.18,138.16,1.30923401]
[1767923474924,7.23610393,138.2,138.16,1.30923401]
[1767923474925,3.52351986,138.19,138.16,1.30923401]
[1767923475121,3.52351986,138.18,138.16,1.30923401]
[1767923477237,25.3219505,138.22,138.16,1.30923401]
[1767923477238,3.52351986,138.19,138.16,1.30923401]
[1767923480320,3.52351986,138.18,138.16,1.30923401]
[1767923480937,3.52351986,138.17,138.16,1.30923401]
[1767923481248,3.52351986,138.18,138.16,1.30923401]
[1767923482845,7.23589001,138.2,138.16,1.30923401]
[1767923483046,3.52351986,138.18,138.16,1.30923401]
[1767923484062,3.52351986,138.19,138.16,1.30923401]
[1767923487147,3.52351986,138.18,138.16,1.30923401]
[1767923489057,3.52351986,138.18,138.16,0.70923401]
[1767923489256,3.52351986,138.18,138.15,0.70923401]
[1767923489454,3.52351986,138.16,138.13,0.70923401]
[1767923489755,3.52351986,138.14,138.12,0.70923401]
[1767923489929,0.12511125,138.17,138.13,0.70923401]
[1767923490133,3.52351986,138.14,138.11,7.24042307]
[1767923490334,3.52351986,138.13,138.11,7.24042307]
[1767923490654,3.52351986,138.13,138.12,7.24008108]
[1767923490952,4.22214485,138.14,138.12,7.24008108]
[1767923491155,0.69862499,138.13,138.11,7.24042846]
[1767923491575,0.69862499,138.13,138.1,7.24112961]
[1767923495465,0.71372674,138.12,138.1,7.24112961]
[1767923495764,0.68372674,138.12,138.1,7.24112961]
[1767923495966,3.52351986,138.13,138.1,7.24112961]
[1767923496262,3.52351986,138.13,138.1,7.9282318]
[1767923496453,2.79851986,138.13,138.12,0.68710219]
[1767923496648,1e-08,138.13,138.11,0.68710219]
[1767923497256,7.23765389,138.17,138.1,7.9282318]
[1767923497257,3.52351986,138.12,138.1,7.9282318]
[1767923497443,3.52351986,138.11,138.1,0.68710219]
[1767923497644,3.52351986,138.11,138.09,7.24148394]
[1767923497867,3.52351986,138.1,138.08,7.24203096]
[1767923498069,3.52351986,138.09,138.07,20.46261628]
[1767923498865,3.52351986,138.1,138.07,21.14971847]
[1767923499083,3.52351986,138.1,138.08,0.68710219]
[1767923500648,3.52351986,138.09,138.06,7.24316349]
[1767923502381,3.52351986,138.08,138.05,20.66362587]
[1767923502671,3.52351986,138.09,138.06,0.68710219]
[1767923503480,3.52351986,138.09,138.05,0.2]
[1767923503481,3.52351986,138.07,138.05,0.2]
[1767923504071,3.52351986,138.06,138.05,0.2]
[1767923504246,3.32351985,138.06,138.03,20.4647429]
[1767923504764,0.71372674,138.06,138.03,20.4647429]
[1767923505273,0.71372674,138.06,138.04,7.24419499]
[1767923505851,4.2372466,138.07,138.04,7.24419499]
[1767923506355,4.2372466,138.07,138.04,7.93129718]
[1767923507377,4.2372466,138.07,138.03,21.15172939]
[1767923510174,0.71372674,138.07,138.03,21.15172939]
[1767923510355,4.2372466,138.07,138.03,21.15172939]
[1767923512689,4.2372466,138.06,138.02,8.13226708]
[1767923512858,3.52351986,138.05,138.02,8.13226708]
[1767923513186,3.49351986,138.05,138.02,8.13226708]
[1767923513595,0.71372674,138.04,138.01,0.2]
[1767923513877,20.46271538,138.07,138.0,0.2]
[1767923513878,3.52351986,138.03,138.0,0.2]
[1767923514379,7.24271538,138.07,138.0,7.4460205]
[1767923514675,3.52351986,138.05,138.0,7.4460205]
[1767923515058,7.2433458,138.06,138.0,7.4460205]
[1767923515262,3.52351986,138.05,138.0,7.4460205]
[1767923515754,0.71372674,138.03,138.0,7.4460205]
[1767923517159,0.68372672,138.03,138.0,7.4460205]
[1767923518570,3.52351986,138.04,138.01,0.68710219]
[1767923519192,3.52351986,138.03,138.01,0.68710219]
[1767923520077,3.52351986,138.03,138.0,0.88710219]
[1767923520893,0.71372674,138.0,137.96,31.54008417]
[1767923521103,3.52351986,137.99,137.97,0.68710219]
[1767923521268,0.71372674,138.02,137.96,13.42]
[1767923521470,3.52351986,138.0,137.97,0.68710219]
[1767923522199,3.52351986,138.01,137.98,0.68710219]
[1767923522503,3.52351986,137.99,137.96,14.08233968]
[1767923522674,0.69340668,137.98,137.96,13.42]
[1767923523696,0.66340669,137.98,137.96,0.2]
[1767923523892,0.66340669,137.98,137.96,7.44840259]
[1767923524104,3.52351986,138.0,137.96,7.44840259]
[1767923525686,3.52351986,137.99,137.96,7.44840259]
[1767923526001,4.21692654,137.99,137.96,7.44840259]
[1767923526676,0.72385998,138.01,137.96,8.13566395]
[1767923526881,0.72385998,138.01,137.97,0.68726136]
[1767923527098,0.71988352,138.0,137.96,25.56959713]
[1767923527306,3.52351986,138.01,137.97,0.68726136]
[1767923528195,3.52351986,138.01,137.98,0.68726136]
[1767923529503,103.1,138.04,137.99,0.68726136]
[1767923529806,13.50432314,138.06,137.99,0.68726136]
[1767923529807,3.52351986,138.03,137.99,0.68726136]
[1767923530502,1.53515564,138.03,138.02,0.68726136]
[1767923530688,2.26015564,138.04,137.98,25.36558912]
[1767923531000,2.26015564,138.04,137.99,0.49663007]
[1767923531578,2.26015564,138.04,138.0,7.74300688]
[1767923531779,0.14216157,138.06,138.0,7.74300688]
[1767923531780,2.26015564,138.06,138.01,0.49663007]
[1767923532077,7.96566039,138.09,138.01,2.26015564]
[1767923532275,2.98401562,138.08,138.02,2.26015564]
[1767923533007,2.98401562,138.07,138.01,2.26015564]
[1767923533580,2.98401562,138.06,138.0,40.84247447]
[1767923533780,2.98401562,138.03,138.0,13.22]
[1767923534382,2.98401562,138.02,137.97,13.22]
[1767923534604,0.72385998,138.0,137.97,20.46756585]